[Event "Early-Titled-Tuesday-Blitz-May-07-2024"]
[Site "Chess.com"]
[Date "2024.05.07"]
[Round "8"]
[White "Goryachkina"]
[Black "TenisMaster"]
[Result "0-1"]
[WhiteElo "2705"]
[BlackElo "2881"]
[TimeControl "180+1"]
[EndTime "9:35:01 PDT"]
[Termination "TenisMaster won on time"]

1. e4 {[%clk 0:02:59.7]} 1... e5 {[%clk 0:02:59.9]} 2. Nf3 {[%clk 0:02:59.3]}
2... Nc6 {[%clk 0:03:00.5]} 3. Bc4 {[%clk 0:02:59]} 3... Bc5 {[%clk 0:03:00.3]}
4. c3 {[%clk 0:02:57.8]} 4... Nf6 {[%clk 0:03:00.3]} 5. d3 {[%clk 0:02:57.8]}
5... d6 {[%clk 0:03:00.2]} 6. Nbd2 {[%clk 0:02:54.9]} 6... a6 {[%clk 0:02:58.7]}
7. h3 {[%clk 0:02:51]} 7... O-O {[%clk 0:02:56.2]} 8. Bb3 {[%clk 0:02:34.2]}
8... Re8 {[%clk 0:02:53.7]} 9. O-O {[%clk 0:02:31.2]} 9... h6 {[%clk 0:02:49.1]}
10. Re1 {[%clk 0:02:29.6]} 10... Be6 {[%clk 0:02:49.3]} 11. Bc2 {[%clk
0:02:27.2]} 11... d5 {[%clk 0:02:49.4]} 12. Qe2 {[%clk 0:02:23.8]} 12... Qd7
{[%clk 0:02:46.3]} 13. Nf1 {[%clk 0:02:19.7]} 13... b5 {[%clk 0:02:45]} 14. Bb3
{[%clk 0:02:01.5]} 14... Rad8 {[%clk 0:02:40.7]} 15. Ng3 {[%clk 0:01:52.8]}
15... dxe4 {[%clk 0:02:27.6]} 16. Bxe6 {[%clk 0:01:38.9]} 16... Rxe6 {[%clk
0:02:26.7]} 17. dxe4 {[%clk 0:01:35.2]} 17... Qd3 {[%clk 0:02:21.9]} 18. Be3
{[%clk 0:01:29.3]} 18... Qxe2 {[%clk 0:02:05.3]} 19. Rxe2 {[%clk 0:01:29.2]}
19... Bxe3 {[%clk 0:02:05.8]} 20. Rxe3 {[%clk 0:01:29.2]} 20... g6 {[%clk
0:02:01.2]} 21. a4 {[%clk 0:01:05.3]} 21... Red6 {[%clk 0:01:56.6]} 22. axb5
{[%clk 0:00:58.9]} 22... axb5 {[%clk 0:01:57.5]} 23. Ree1 {[%clk 0:00:57.6]}
23... Nd7 {[%clk 0:01:55.2]} 24. Nf1 {[%clk 0:00:38.9]} 24... Nc5 {[%clk
0:01:52.6]} 25. b4 {[%clk 0:00:25.7]} 25... Nd3 {[%clk 0:01:40.1]} 26. Red1
{[%clk 0:00:21.6]} 26... Nf4 {[%clk 0:01:39.5]} 27. Re1 {[%clk 0:00:19]} 27...
Rd3 {[%clk 0:01:35.8]} 28. Rac1 {[%clk 0:00:18]} 28... Nxh3+ {[%clk 0:01:35]}
29. gxh3 {[%clk 0:00:15.3]} 29... Rxf3 {[%clk 0:01:35]} 30. Kg2 {[%clk
0:00:15.5]} 30... Rfd3 {[%clk 0:01:28.7]} 31. Ne3 {[%clk 0:00:15.6]} 31... Kg7
{[%clk 0:01:20.7]} 32. Nd5 {[%clk 0:00:13.1]} 32... Rd7 {[%clk 0:01:20.8]} 33.
c4 {[%clk 0:00:11.2]} 33... Rd4 {[%clk 0:01:09.4]} 34. cxb5 {[%clk 0:00:09.1]}
34... Nxb4 {[%clk 0:01:09.7]} 35. Nxc7 {[%clk 0:00:05.1]} 35... Nd3 {[%clk
0:01:09.1]} 36. Ne8+ {[%clk 0:00:05]} 36... Kf8 {[%clk 0:01:08.1]} 37. Nf6
{[%clk 0:00:05.4]} 37... Nxe1+ {[%clk 0:01:05.2]} 38. Rxe1 {[%clk 0:00:04.7]}
38... Rb7 {[%clk 0:01:05.9]} 39. Rb1 {[%clk 0:00:04.3]} 39... Kg7 {[%clk
0:01:02.4]} 40. Ne8+ {[%clk 0:00:03]} 40... Kf8 {[%clk 0:01:02.3]} 41. Nf6
{[%clk 0:00:03.4]} 41... Ke7 {[%clk 0:00:57.8]} 42. Nd5+ {[%clk 0:00:03.8]}
42... Kd6 {[%clk 0:00:58.4]} 43. f3 {[%clk 0:00:04.3]} 43... Rd2+ {[%clk
0:00:57.5]} 44. Kg3 {[%clk 0:00:04.2]} 44... h5 {[%clk 0:00:55.9]} 45. h4 {[%clk
0:00:04.3]} 45... f5 {[%clk 0:00:53.3]} 46. b6 {[%clk 0:00:04]} 46... Rxd5
{[%clk 0:00:41.5]} 47. exd5 {[%clk 0:00:04]} 47... Kxd5 {[%clk 0:00:42.4]} 48.
Kf2 {[%clk 0:00:04]} 48... Kc5 {[%clk 0:00:41.4]} 49. Rc1+ {[%clk 0:00:03]}
49... Kxb6 {[%clk 0:00:40.3]} 50. Rg1 {[%clk 0:00:02.6]} 50... Rg7 {[%clk
0:00:39.7]} 51. Re1 {[%clk 0:00:01.7]} 51... Re7 {[%clk 0:00:39.3]} 52. Rc1
{[%clk 0:00:02.1]} 52... Rc7 {[%clk 0:00:37.5]} 53. Rg1 {[%clk 0:00:01.8]} 53...
Rc6 {[%clk 0:00:36.3]} 54. Ke3 {[%clk 0:00:02.1]} 54... Kc5 {[%clk 0:00:35.5]}
55. f4 {[%clk 0:00:02.1]} 55... e4 {[%clk 0:00:35]} 0-1

[Event "Early-Titled-Tuesday-Blitz-May-07-2024"]
[Site "Chess.com"]
[Date "2024.05.07"]
[Round "8"]
[White "sokidze"]
[Black "laysa_latifah"]
[Result "1-0"]
[WhiteElo "2790"]
[BlackElo "2443"]
[TimeControl "180+1"]
[EndTime "9:35:01 PDT"]
[Termination "sokidze won by resignation"]

1. e4 {[%clk 0:03:00.9]} 1... c6 {[%clk 0:02:57.3]} 2. Nf3 {[%clk 0:02:58.2]}
2... d5 {[%clk 0:02:57.6]} 3. Nc3 {[%clk 0:02:58.6]} 3... dxe4 {[%clk
0:02:57.7]} 4. Nxe4 {[%clk 0:02:58.6]} 4... Nf6 {[%clk 0:02:58.4]} 5. Qe2 {[%clk
0:02:58.6]} 5... Nxe4 {[%clk 0:02:58.5]} 6. Qxe4 {[%clk 0:02:59.2]} 6... Nd7
{[%clk 0:02:59.1]} 7. Bc4 {[%clk 0:02:57.3]} 7... e6 {[%clk 0:02:57.3]} 8. d4
{[%clk 0:02:54.2]} 8... Nf6 {[%clk 0:02:57]} 9. Qe2 {[%clk 0:02:53.3]} 9... Be7
{[%clk 0:02:51.8]} 10. O-O {[%clk 0:02:53]} 10... O-O {[%clk 0:02:52.1]} 11. Rd1
{[%clk 0:02:48.7]} 11... b5 {[%clk 0:02:50.1]} 12. Bb3 {[%clk 0:02:45.6]} 12...
Bb7 {[%clk 0:02:49.8]} 13. Ne5 {[%clk 0:02:44.1]} 13... Qb6 {[%clk 0:02:36]} 14.
a4 {[%clk 0:02:40.6]} 14... a6 {[%clk 0:01:56.5]} 15. Bg5 {[%clk 0:02:38.1]}
15... Qd8 {[%clk 0:01:49.7]} 16. c3 {[%clk 0:02:25.3]} 16... h6 {[%clk
0:01:48.4]} 17. Bh4 {[%clk 0:02:17]} 17... Nd5 {[%clk 0:01:42.9]} 18. Bxe7
{[%clk 0:02:15.9]} 18... Qxe7 {[%clk 0:01:43.8]} 19. Nd3 {[%clk 0:02:15.5]}
19... Rab8 {[%clk 0:01:22.8]} 20. Bxd5 {[%clk 0:02:04.4]} 20... cxd5 {[%clk
0:01:23.7]} 21. Nc5 {[%clk 0:02:05.1]} 21... bxa4 {[%clk 0:01:17.6]} 22. Rxa4
{[%clk 0:02:04.1]} 22... Bc6 {[%clk 0:01:17.3]} 23. Ra5 {[%clk 0:01:56.6]} 23...
Bb5 {[%clk 0:01:16.1]} 24. Qe3 {[%clk 0:01:55.6]} 24... Bc4 {[%clk 0:01:13]} 25.
b4 {[%clk 0:01:55.1]} 25... Rb6 {[%clk 0:01:11.4]} 26. Rda1 {[%clk 0:01:54.5]}
26... Qd6 {[%clk 0:01:08.5]} 27. f4 {[%clk 0:01:52.4]} 27... Re8 {[%clk
0:00:58.6]} 28. Re1 {[%clk 0:01:35.8]} 28... f6 {[%clk 0:00:38.1]} 29. Raa1
{[%clk 0:01:23.8]} 29... Re7 {[%clk 0:00:35.8]} 30. Qg3 {[%clk 0:01:23.2]} 30...
Rb8 {[%clk 0:00:34.7]} 31. Re3 {[%clk 0:01:23.2]} 31... Rbe8 {[%clk 0:00:35.1]}
32. Rae1 {[%clk 0:01:23.4]} 32... Qb6 {[%clk 0:00:33.3]} 33. f5 {[%clk
0:01:14.8]} 33... e5 {[%clk 0:00:17.5]} 34. dxe5 {[%clk 0:01:14.8]} 34... Qb8
{[%clk 0:00:17.5]} 35. Ne6 {[%clk 0:00:58.3]} 35... d4 {[%clk 0:00:12.2]} 36.
cxd4 {[%clk 0:00:33.8]} 36... Bxe6 {[%clk 0:00:11.2]} 37. exf6 {[%clk
0:00:34.4]} 37... Qxg3 {[%clk 0:00:08.4]} 38. hxg3 {[%clk 0:00:35.1]} 38... gxf6
{[%clk 0:00:07.5]} 39. Rxe6 {[%clk 0:00:34.9]} 39... Rxe6 {[%clk 0:00:05.5]} 40.
Rxe6 {[%clk 0:00:35.6]} 40... Rd8 {[%clk 0:00:05.9]} 41. Rxf6 {[%clk 0:00:30.7]}
41... Rxd4 {[%clk 0:00:06.1]} 42. Rxh6 {[%clk 0:00:30.5]} 42... Rxb4 {[%clk
0:00:05.5]} 43. Rxa6 {[%clk 0:00:31]} 43... Rg4 {[%clk 0:00:04.2]} 44. Kf2
{[%clk 0:00:23.6]} 44... Rg5 {[%clk 0:00:03.3]} 45. Rg6+ {[%clk 0:00:21.5]}
45... Rxg6 {[%clk 0:00:03.1]} 46. fxg6 {[%clk 0:00:22.4]} 46... Kg7 {[%clk
0:00:04]} 47. Kf3 {[%clk 0:00:22.9]} 47... Kxg6 {[%clk 0:00:04.9]} 48. Kg4
{[%clk 0:00:23.3]} 48... Kg7 {[%clk 0:00:05.4]} 49. Kg5 {[%clk 0:00:23.6]} 49...
Kg8 {[%clk 0:00:06.3]} 50. Kg6 {[%clk 0:00:24.1]} 1-0

[Event "Early-Titled-Tuesday-Blitz-May-07-2024"]
[Site "Chess.com"]
[Date "2024.05.07"]
[Round "8"]
[White "ATM622"]
[Black "CarlosjPineror"]
[Result "1-0"]
[WhiteElo "2521"]
[BlackElo "2690"]
[TimeControl "180+1"]
[EndTime "9:35:05 PDT"]
[Termination "ATM622 won on time"]

1. d4 {[%clk 0:03:00.9]} 1... Nf6 {[%clk 0:02:45.4]} 2. c4 {[%clk 0:03:00.6]}
2... d6 {[%clk 0:02:44.3]} 3. g3 {[%clk 0:03:00.2]} 3... g6 {[%clk 0:02:44.1]}
4. Bg2 {[%clk 0:03:00]} 4... Bg7 {[%clk 0:02:44.6]} 5. Nf3 {[%clk 0:03:00]} 5...
O-O {[%clk 0:02:44.8]} 6. O-O {[%clk 0:02:59.6]} 6... c6 {[%clk 0:02:45.7]} 7.
Nc3 {[%clk 0:02:57.1]} 7... Qa5 {[%clk 0:02:46]} 8. Qc2 {[%clk 0:02:55.2]} 8...
Qh5 {[%clk 0:02:46.1]} 9. e4 {[%clk 0:02:48.2]} 9... Bg4 {[%clk 0:02:45]} 10.
Ne1 {[%clk 0:02:41.6]} 10... Bh3 {[%clk 0:02:44.5]} 11. f3 {[%clk 0:02:35.5]}
11... Bxg2 {[%clk 0:02:39.3]} 12. Nxg2 {[%clk 0:02:36.4]} 12... Nfd7 {[%clk
0:02:39.3]} 13. Be3 {[%clk 0:02:32.4]} 13... Qa5 {[%clk 0:02:39.2]} 14. a3
{[%clk 0:02:31.8]} 14... Qd8 {[%clk 0:02:21.9]} 15. b4 {[%clk 0:02:25.8]} 15...
Na6 {[%clk 0:02:21.6]} 16. Rab1 {[%clk 0:02:21.7]} 16... Nc7 {[%clk 0:02:13.9]}
17. Rfd1 {[%clk 0:02:21.5]} 17... e6 {[%clk 0:02:12.9]} 18. c5 {[%clk
0:02:18.4]} 18... d5 {[%clk 0:02:13]} 19. e5 {[%clk 0:02:17.2]} 19... f6 {[%clk
0:02:09.7]} 20. f4 {[%clk 0:02:14.4]} 20... b5 {[%clk 0:01:55.7]} 21. Ne2 {[%clk
0:02:04.9]} 21... a5 {[%clk 0:01:55]} 22. h4 {[%clk 0:02:00.6]} 22... Qe7 {[%clk
0:01:48.4]} 23. Kh2 {[%clk 0:01:57.3]} 23... axb4 {[%clk 0:01:41.1]} 24. axb4
{[%clk 0:01:57]} 24... Ra4 {[%clk 0:01:37.5]} 25. Rh1 {[%clk 0:01:50.1]} 25...
Rfa8 {[%clk 0:01:36.5]} 26. Nc3 {[%clk 0:01:47.5]} 26... Ra3 {[%clk 0:01:35.8]}
27. Bc1 {[%clk 0:01:45.7]} 27... R3a7 {[%clk 0:01:33.3]} 28. Kg1 {[%clk
0:01:42.6]} 28... f5 {[%clk 0:01:28.5]} 29. h5 {[%clk 0:01:41]} 29... Qd8 {[%clk
0:01:20.7]} 30. hxg6 {[%clk 0:01:38.6]} 30... hxg6 {[%clk 0:01:20.5]} 31. Nh4
{[%clk 0:01:39]} 31... Nf8 {[%clk 0:01:20.7]} 32. Nf3 {[%clk 0:01:35.9]} 32...
Nh7 {[%clk 0:01:17.2]} 33. Qh2 {[%clk 0:01:30.4]} 33... Nf8 {[%clk 0:01:10.4]}
34. Ng5 {[%clk 0:01:30.5]} 34... Ra1 {[%clk 0:01:05.8]} 35. Bb2 {[%clk
0:01:25.1]} 35... Rxb1+ {[%clk 0:01:05.1]} 36. Nxb1 {[%clk 0:01:26]} 36... Ra2
{[%clk 0:01:04.7]} 37. Nc3 {[%clk 0:01:22.4]} 37... Ra7 {[%clk 0:00:48.7]} 38.
Qc2 {[%clk 0:01:21.7]} 38... Qa8 {[%clk 0:00:47.5]} 39. Kg2 {[%clk 0:01:20]}
39... Na6 {[%clk 0:00:43.2]} 40. Qb3 {[%clk 0:01:16.1]} 40... Nc7 {[%clk
0:00:43.5]} 41. g4 {[%clk 0:01:11.7]} 41... fxg4 {[%clk 0:00:42.8]} 42. Kg3
{[%clk 0:01:09.8]} 42... Ra4 {[%clk 0:00:19.9]} 43. Kxg4 {[%clk 0:01:05.6]}
43... Qa7 {[%clk 0:00:16.2]} 44. Nxa4 {[%clk 0:01:04.2]} 44... bxa4 {[%clk
0:00:16.2]} 45. Ra1 {[%clk 0:01:02.1]} 45... Qa6 {[%clk 0:00:13.4]} 46. Qd1
{[%clk 0:00:56.9]} 46... Qc4 {[%clk 0:00:09.3]} 47. Rxa4 {[%clk 0:00:55.7]}
47... Bh6 {[%clk 0:00:07.6]} 48. Ra3 {[%clk 0:00:44.4]} 48... Bxg5 {[%clk
0:00:07.6]} 49. Kxg5 {[%clk 0:00:42.1]} 49... Nb5 {[%clk 0:00:06.4]} 50. Ra8
{[%clk 0:00:40.2]} 50... Qxb4 {[%clk 0:00:05.5]} 51. Qh1 {[%clk 0:00:25.1]}
51... Qxb2 {[%clk 0:00:03.4]} 52. Qh6 {[%clk 0:00:22.9]} 52... Qg2+ {[%clk
0:00:01.6]} 53. Kf6 {[%clk 0:00:22.9]} 1-0

[Event "Early-Titled-Tuesday-Blitz-May-07-2024"]
[Site "Chess.com"]
[Date "2024.05.07"]
[Round "8"]
[White "Mikhail_Bryakin"]
[Black "mishanick"]
[Result "0-1"]
[WhiteElo "2889"]
[BlackElo "3042"]
[TimeControl "180+1"]
[EndTime "9:35:06 PDT"]
[Termination "mishanick won by resignation"]

1. Nf3 {[%clk 0:03:00.9]} 1... d5 {[%clk 0:03:00]} 2. d4 {[%clk 0:03:00.5]} 2...
Nf6 {[%clk 0:03:00.1]} 3. c4 {[%clk 0:03:00.5]} 3... e6 {[%clk 0:03:00]} 4. g3
{[%clk 0:03:01]} 4... Bb4+ {[%clk 0:02:59.1]} 5. Bd2 {[%clk 0:03:00.9]} 5... Be7
{[%clk 0:02:59.6]} 6. Bg2 {[%clk 0:03:01.4]} 6... c6 {[%clk 0:03:00.3]} 7. O-O
{[%clk 0:03:01.8]} 7... Nbd7 {[%clk 0:03:01.1]} 8. Qc2 {[%clk 0:03:02.2]} 8...
b6 {[%clk 0:03:00.1]} 9. Bf4 {[%clk 0:03:01.7]} 9... Ba6 {[%clk 0:03:00.1]} 10.
Ne5 {[%clk 0:02:53]} 10... Nxe5 {[%clk 0:02:55.5]} 11. dxe5 {[%clk 0:02:51.2]}
11... Nd7 {[%clk 0:02:56]} 12. cxd5 {[%clk 0:02:48.8]} 12... cxd5 {[%clk
0:02:55.7]} 13. Rd1 {[%clk 0:02:45.7]} 13... Rc8 {[%clk 0:02:18]} 14. Nc3 {[%clk
0:02:45]} 14... b5 {[%clk 0:01:58.9]} 15. a3 {[%clk 0:02:33]} 15... Qb6 {[%clk
0:01:49.4]} 16. Be3 {[%clk 0:02:23]} 16... Qc7 {[%clk 0:01:47]} 17. f4 {[%clk
0:02:19]} 17... O-O {[%clk 0:01:43.4]} 18. Bd4 {[%clk 0:02:18]} 18... f6 {[%clk
0:01:25.6]} 19. e4 {[%clk 0:02:07]} 19... fxe5 {[%clk 0:01:19.7]} 20. fxe5
{[%clk 0:02:06]} 20... dxe4 {[%clk 0:01:15.8]} 21. Qxe4 {[%clk 0:02:05.4]} 21...
Bc5 {[%clk 0:00:55.5]} 22. Bxc5 {[%clk 0:01:40.1]} 22... Qxc5+ {[%clk 0:00:53]}
23. Qd4 {[%clk 0:01:40.4]} 23... Nxe5 {[%clk 0:00:49.3]} 24. Qxc5 {[%clk
0:01:33.9]} 24... Rxc5 {[%clk 0:00:50.2]} 25. Rd6 {[%clk 0:01:34.3]} 25... Bc8
{[%clk 0:00:50.4]} 26. Re1 {[%clk 0:01:14.9]} 26... Nc4 {[%clk 0:00:48.6]} 27.
Rc6 {[%clk 0:01:11.7]} 27... Rxc6 {[%clk 0:00:47.5]} 28. Bxc6 {[%clk 0:01:12.6]}
28... a6 {[%clk 0:00:47.8]} 29. Re2 {[%clk 0:01:09.7]} 29... Rd8 {[%clk
0:00:44.5]} 30. Kf2 {[%clk 0:01:03.9]} 30... Kf7 {[%clk 0:00:44.4]} 31. Ne4
{[%clk 0:00:52.7]} 31... h6 {[%clk 0:00:36.7]} 32. Nc5 {[%clk 0:00:50.9]} 32...
Ke7 {[%clk 0:00:36.2]} 33. Be4 {[%clk 0:00:42.2]} 33... Rd4 {[%clk 0:00:32.2]}
34. Nb3 {[%clk 0:00:39.4]} 34... Rd6 {[%clk 0:00:31.8]} 35. Nc5 {[%clk
0:00:39.3]} 35... Rd4 {[%clk 0:00:30.6]} 36. Nb3 {[%clk 0:00:39.2]} 36... Rd1
{[%clk 0:00:31.1]} 37. Nc5 {[%clk 0:00:36.3]} 37... Kd6 {[%clk 0:00:29.1]} 38.
Nd3 {[%clk 0:00:29.2]} 38... e5 {[%clk 0:00:21.7]} 39. Re1 {[%clk 0:00:29.4]}
39... Rd2+ {[%clk 0:00:20.5]} 40. Re2 {[%clk 0:00:30]} 40... Bg4 {[%clk
0:00:18.9]} 41. Rxd2 {[%clk 0:00:29.9]} 41... Nxd2 {[%clk 0:00:19.8]} 42. Bb7
{[%clk 0:00:26.8]} 42... a5 {[%clk 0:00:20.3]} 43. h4 {[%clk 0:00:25.7]} 43...
Nc4 {[%clk 0:00:19]} 44. Ba6 {[%clk 0:00:22]} 44... e4 {[%clk 0:00:14.5]} 45.
Nf4 {[%clk 0:00:18.6]} 45... e3+ {[%clk 0:00:14.8]} 46. Ke1 {[%clk 0:00:18.5]}
46... Kc5 {[%clk 0:00:14.8]} 47. Nd3+ {[%clk 0:00:06.7]} 47... Kb6 {[%clk
0:00:15.1]} 48. b3 {[%clk 0:00:04.3]} 48... Nxa3 {[%clk 0:00:14.2]} 49. Ne5
{[%clk 0:00:04.8]} 49... Be6 {[%clk 0:00:13.4]} 50. Nd3 {[%clk 0:00:03.6]} 50...
Bf5 {[%clk 0:00:12.1]} 0-1

[Event "Early-Titled-Tuesday-Blitz-May-07-2024"]
[Site "Chess.com"]
[Date "2024.05.07"]
[Round "8"]
[White "tantaan"]
[Black "Semetey"]
[Result "0-1"]
[WhiteElo "2488"]
[BlackElo "2600"]
[TimeControl "180+1"]
[EndTime "9:35:06 PDT"]
[Termination "Semetey won by resignation"]

1. e4 {[%clk 0:03:00.9]} 1... Nc6 {[%clk 0:02:46.6]} 2. d4 {[%clk 0:02:58.8]}
2... d5 {[%clk 0:02:46.6]} 3. exd5 {[%clk 0:02:54.9]} 3... Qxd5 {[%clk
0:02:46.3]} 4. Nf3 {[%clk 0:02:54]} 4... Bg4 {[%clk 0:02:46.2]} 5. Nc3 {[%clk
0:02:54.6]} 5... Qh5 {[%clk 0:02:42.8]} 6. Be2 {[%clk 0:02:53.8]} 6... O-O-O
{[%clk 0:02:42.6]} 7. Be3 {[%clk 0:02:51.6]} 7... e5 {[%clk 0:02:42.2]} 8. d5
{[%clk 0:02:42]} 8... Nf6 {[%clk 0:02:29.4]} 9. Qd3 {[%clk 0:02:14.2]} 9... Nb4
{[%clk 0:02:20.1]} 10. Qd2 {[%clk 0:02:07]} 10... Nbxd5 {[%clk 0:02:19.7]} 11.
Nxd5 {[%clk 0:02:04.9]} 11... Rxd5 {[%clk 0:02:09.3]} 12. Qc3 {[%clk 0:01:58]}
12... e4 {[%clk 0:02:08.5]} 13. Nd4 {[%clk 0:01:52.4]} 13... Bxe2 {[%clk
0:02:06.7]} 14. Nxe2 {[%clk 0:01:50.9]} 14... Qe5 {[%clk 0:02:00.4]} 15. Qxe5
{[%clk 0:01:36.1]} 15... Rxe5 {[%clk 0:01:57.1]} 16. O-O-O {[%clk 0:01:34]}
16... Bc5 {[%clk 0:01:54.8]} 17. Bxc5 {[%clk 0:01:30.3]} 17... Rxc5 {[%clk
0:01:53.5]} 18. h3 {[%clk 0:01:31]} 18... Rd8 {[%clk 0:01:52.9]} 19. Rxd8+
{[%clk 0:01:26.6]} 19... Kxd8 {[%clk 0:01:53.8]} 20. Ng3 {[%clk 0:01:26.1]}
20... Re5 {[%clk 0:01:50.6]} 21. Re1 {[%clk 0:01:24.8]} 21... Re6 {[%clk
0:01:45.3]} 22. c4 {[%clk 0:01:19.5]} 22... g6 {[%clk 0:01:37.7]} 23. Kc2 {[%clk
0:01:15.8]} 23... h5 {[%clk 0:01:36.5]} 24. Kc3 {[%clk 0:01:13.5]} 24... h4
{[%clk 0:01:35.4]} 25. Ne2 {[%clk 0:01:13.8]} 25... c5 {[%clk 0:01:33.6]} 26.
Nf4 {[%clk 0:01:00.7]} 26... Re5 {[%clk 0:01:31.6]} 27. Rd1+ {[%clk 0:00:58.7]}
27... Ke7 {[%clk 0:01:30.9]} 28. Kd2 {[%clk 0:00:50.7]} 28... g5 {[%clk
0:01:27.2]} 29. Ne2 {[%clk 0:00:50.8]} 29... Nd7 {[%clk 0:01:26]} 30. Ke3 {[%clk
0:00:46.8]} 30... f5 {[%clk 0:01:24.2]} 31. g3 {[%clk 0:00:45.4]} 31... hxg3
{[%clk 0:01:21.6]} 32. fxg3 {[%clk 0:00:46.3]} 32... Re6 {[%clk 0:01:13.1]} 33.
Rf1 {[%clk 0:00:43.5]} 33... Rf6 {[%clk 0:01:03.5]} 34. Nc3 {[%clk 0:00:38.5]}
34... Ke6 {[%clk 0:01:03.3]} 35. Nd5 {[%clk 0:00:33]} 35... Rh6 {[%clk
0:00:59.6]} 36. Rh1 {[%clk 0:00:18.2]} 36... Nf6 {[%clk 0:00:56.9]} 37. Nc7+
{[%clk 0:00:15.6]} 37... Ke5 {[%clk 0:00:56.8]} 38. Nb5 {[%clk 0:00:14.3]} 38...
f4+ {[%clk 0:00:56.7]} 39. gxf4+ {[%clk 0:00:14.8]} 39... gxf4+ {[%clk
0:00:57.6]} 40. Ke2 {[%clk 0:00:15.6]} 40... a6 {[%clk 0:00:54.3]} 41. Nc3
{[%clk 0:00:14.5]} 41... Rg6 {[%clk 0:00:52.5]} 42. Rh2 {[%clk 0:00:14.6]} 42...
Nh5 {[%clk 0:00:26.6]} 43. b3 {[%clk 0:00:14.3]} 43... Rg3 {[%clk 0:00:24.3]}
44. Nd5 {[%clk 0:00:14.3]} 44... Rd3 {[%clk 0:00:23.9]} 45. h4 {[%clk
0:00:13.9]} 45... f3+ {[%clk 0:00:23.6]} 46. Ke1 {[%clk 0:00:12.6]} 46... e3
{[%clk 0:00:22.7]} 47. Rh3 {[%clk 0:00:10.1]} 47... Ke4 {[%clk 0:00:17.6]} 48.
Nf6+ {[%clk 0:00:02.5]} 48... Nxf6 {[%clk 0:00:16.9]} 0-1

[Event "Early-Titled-Tuesday-Blitz-May-07-2024"]
[Site "Chess.com"]
[Date "2024.05.07"]
[Round "8"]
[White "rhwr"]
[Black "balack95"]
[Result "0-1"]
[WhiteElo "2298"]
[BlackElo "2513"]
[TimeControl "180+1"]
[EndTime "9:35:08 PDT"]
[Termination "balack95 won by checkmate"]

1. e4 {[%clk 0:03:00.9]} 1... c6 {[%clk 0:02:58.8]} 2. Nc3 {[%clk 0:03:00.2]}
2... d5 {[%clk 0:02:59.2]} 3. d4 {[%clk 0:03:00.9]} 3... dxe4 {[%clk 0:02:59.3]}
4. Nxe4 {[%clk 0:03:01.8]} 4... Nf6 {[%clk 0:03:00]} 5. Nxf6+ {[%clk 0:03:00.3]}
5... exf6 {[%clk 0:03:00.9]} 6. Nf3 {[%clk 0:02:58]} 6... Bd6 {[%clk 0:03:01]}
7. Bd3 {[%clk 0:02:57.9]} 7... O-O {[%clk 0:03:01.2]} 8. O-O {[%clk 0:02:58]}
8... Re8 {[%clk 0:02:57.9]} 9. Be3 {[%clk 0:02:54.2]} 9... Bg4 {[%clk
0:02:57.1]} 10. h3 {[%clk 0:02:53.3]} 10... Bh5 {[%clk 0:02:56.8]} 11. Be2
{[%clk 0:02:53.7]} 11... Nd7 {[%clk 0:02:56.3]} 12. c3 {[%clk 0:02:48]} 12...
Qe7 {[%clk 0:02:45.6]} 13. Nd2 {[%clk 0:02:46.1]} 13... Bg6 {[%clk 0:02:43.3]}
14. Bf3 {[%clk 0:02:36.7]} 14... Rad8 {[%clk 0:02:41.9]} 15. g3 {[%clk 0:02:34]}
15... Bxg3 {[%clk 0:02:40.1]} 16. fxg3 {[%clk 0:02:33.5]} 16... Qxe3+ {[%clk
0:02:39.7]} 17. Kg2 {[%clk 0:02:33.6]} 17... Bd3 {[%clk 0:02:28.3]} 18. Rf2
{[%clk 0:02:32.8]} 18... Nf8 {[%clk 0:02:24.3]} 19. Nb3 {[%clk 0:02:28.9]} 19...
Be4 {[%clk 0:02:19]} 20. Nc5 {[%clk 0:02:27.2]} 20... Bxf3+ {[%clk 0:02:18.9]}
21. Rxf3 {[%clk 0:02:25.9]} 21... Qe7 {[%clk 0:02:16.8]} 22. Qb3 {[%clk
0:02:16.5]} 22... b6 {[%clk 0:02:16.4]} 23. Nd3 {[%clk 0:02:12.5]} 23... Qe2+
{[%clk 0:02:16.5]} 24. Nf2 {[%clk 0:02:11.7]} 24... Re3 {[%clk 0:02:16.7]} 25.
Rxe3 {[%clk 0:02:09.8]} 25... Qxe3 {[%clk 0:02:17.6]} 26. Qc4 {[%clk 0:02:05.5]}
26... c5 {[%clk 0:02:16.3]} 27. Rd1 {[%clk 0:02:01.6]} 27... cxd4 {[%clk
0:02:16.1]} 28. cxd4 {[%clk 0:02:01.4]} 28... h5 {[%clk 0:02:12.4]} 29. d5
{[%clk 0:01:59.1]} 29... Ng6 {[%clk 0:02:12.2]} 30. d6 {[%clk 0:01:54.4]} 30...
Qf3+ {[%clk 0:01:57.6]} 31. Kxf3 {[%clk 0:01:52.3]} 31... Ne5+ {[%clk
0:01:58.3]} 32. Kf4 {[%clk 0:01:32]} 32... Nxc4 {[%clk 0:01:59.2]} 33. d7 {[%clk
0:01:26.9]} 33... Ne5 {[%clk 0:01:57]} 34. Ne4 {[%clk 0:01:09.1]} 34... Rxd7
{[%clk 0:01:56.2]} 35. Rxd7 {[%clk 0:01:08.2]} 35... Nxd7 {[%clk 0:01:56.5]} 36.
Nd6 {[%clk 0:01:08.8]} 36... Kf8 {[%clk 0:01:49]} 37. Ke4 {[%clk 0:01:08.6]}
37... Nc5+ {[%clk 0:01:26.3]} 38. Kd4 {[%clk 0:01:04.7]} 38... g6 {[%clk
0:01:19.1]} 39. Nc8 {[%clk 0:01:03.2]} 39... Ne6+ {[%clk 0:01:12.2]} 40. Kd5
{[%clk 0:00:59.5]} 40... Ng5 {[%clk 0:01:12.1]} 41. h4 {[%clk 0:00:59.3]} 41...
Ne6 {[%clk 0:01:08.5]} 42. Nxa7 {[%clk 0:00:57]} 42... g5 {[%clk 0:00:57]} 43.
Nc8 {[%clk 0:00:51.2]} 43... b5 {[%clk 0:00:57.1]} 44. Nd6 {[%clk 0:00:50.6]}
44... b4 {[%clk 0:00:57.4]} 45. Ne4 {[%clk 0:00:49.8]} 45... Ke7 {[%clk
0:00:50.5]} 46. Kc4 {[%clk 0:00:49.3]} 46... f5 {[%clk 0:00:43.8]} 47. Nf2
{[%clk 0:00:36.4]} 47... f4 {[%clk 0:00:43.7]} 48. gxf4 {[%clk 0:00:35.3]} 48...
gxh4 {[%clk 0:00:40.9]} 49. Nh3 {[%clk 0:00:27.2]} 49... Kf6 {[%clk 0:00:41]}
50. Kxb4 {[%clk 0:00:26.5]} 50... Kf5 {[%clk 0:00:41.7]} 51. a4 {[%clk
0:00:26.3]} 51... Kg4 {[%clk 0:00:42.4]} 52. Nf2+ {[%clk 0:00:24.2]} 52... Kf3
{[%clk 0:00:42.2]} 53. Nh3 {[%clk 0:00:20.4]} 53... Kg3 {[%clk 0:00:42.7]} 54.
Ng1 {[%clk 0:00:19.3]} 54... h3 {[%clk 0:00:42.1]} 55. Nxh3 {[%clk 0:00:15.9]}
55... Kxh3 {[%clk 0:00:43]} 56. a5 {[%clk 0:00:15.9]} 56... Kg3 {[%clk
0:00:40.8]} 57. a6 {[%clk 0:00:14.9]} 57... h4 {[%clk 0:00:40.5]} 58. a7 {[%clk
0:00:14.8]} 58... Nc7 {[%clk 0:00:40.3]} 59. Kc5 {[%clk 0:00:14.4]} 59... h3
{[%clk 0:00:40.6]} 60. Kc6 {[%clk 0:00:15.3]} 60... Na8 {[%clk 0:00:40.4]} 61.
Kb7 {[%clk 0:00:15.5]} 61... h2 {[%clk 0:00:41.3]} 62. Kxa8 {[%clk 0:00:16.2]}
62... h1=Q+ {[%clk 0:00:41.9]} 63. Kb8 {[%clk 0:00:16.8]} 63... Qh8+ {[%clk
0:00:42]} 64. Kb7 {[%clk 0:00:15.4]} 64... Qxb2+ {[%clk 0:00:42.1]} 65. Ka8
{[%clk 0:00:14.6]} 65... Qb6 {[%clk 0:00:38]} 66. f5 {[%clk 0:00:12.3]} 66...
Qc7 {[%clk 0:00:38.2]} 67. f6 {[%clk 0:00:11.9]} 67... Qc8# {[%clk 0:00:39.1]}
0-1